bitfinex/quotes_ETHUSD_20241122
["timestamp","ask_amount","ask_price","bid_price","bid_amount"]
[1732268453005,0.98015108,3361.4,3360.7,0.297]
[1732268453394,0.03719031,3361.3,3360.7,0.297]
[1732268453635,0.55,3361.2,3360.7,0.297]
[1732268454541,0.55,3361.0,3360.7,0.297]
[1732268454721,0.55,3361.0,3360.6,1.6398]
[1732268455031,0.55,3361.2,3360.6,1.6398]
[1732268455330,0.55,3361.0,3360.6,1.6398]
[1732268455533,0.55,3361.2,3360.6,1.6398]
[1732268455744,0.55,3361.3,3360.6,1.6398]
[1732268456126,0.41453875,3361.2,3360.6,1.6398]
[1732268456319,0.55,3361.1,3360.6,1.6398]
[1732268456642,0.55,3361.4,3360.6,1.6398]
[1732268456858,0.921,3361.4,3360.6,1.6398]
[1732268457943,0.55,3361.2,3360.6,1.6398]
[1732268458247,0.55,3361.2,3360.7,3.0]
[1732268458748,0.55,3361.3,3360.7,3.0]
[1732268458908,0.44900936,3361.2,3360.7,3.0]
[1732268459113,0.03719033,3361.2,3360.7,3.0]
[1732268459311,0.55,3361.5,3360.7,3.0]
[1732268459515,0.55,3361.3,3360.7,3.0]
[1732268459741,0.55,3361.1,3360.7,3.0]
[1732268460043,0.03719321,3361.0,3360.8,0.297]
[1732268460249,1.5413,3361.2,3360.8,0.297]
[1732268460420,0.23214522,3361.1,3360.8,0.297]
[1732268460949,3.16,3361.0,3360.8,0.297]
[1732268461245,1.5387,3360.9,3360.8,0.297]
[1732268461613,1.57589783,3360.9,3360.8,0.297]
[1732268461810,2.12589783,3360.9,3360.8,0.297]
[1732268462120,5.28589783,3360.9,3360.8,0.297]
[1732268462317,5.81448761,3360.9,3360.8,0.297]
[1732268463181,0.55,3360.8,3360.7,3.0]
[1732268463673,0.55,3360.8,3360.7,3.297]
[1732268464382,0.55,3360.8,3360.7,3.267]
[1732268464572,1.12772898,3360.8,3360.7,3.267]
[1732268465082,1.12772898,3360.8,3360.7,2.9999]
[1732268466382,5.92732771,3360.8,3360.7,1.61713359]
[1732268466561,5.34959873,3360.8,3360.7,1.02305359]
[1732268467137,5.34959873,3360.8,3360.7,1.32005359]
[1732268467341,6.2344838,3360.8,3360.7,1.02305359]
[1732268468837,6.2344838,3360.8,3360.7,0.84721625]
[1732268469048,6.2344838,3360.8,3360.7,0.03728287]
[1732268469764,1.5923,3360.7,3359.2,0.297]
[1732268469974,2.0891,3360.2,3359.2,0.297]
[1732268470272,0.55,3359.8,3359.2,0.297]
[1732268470482,0.55,3359.6,3359.2,0.297]
[1732268470683,0.55,3359.4,3359.3,0.297]
[1732268470894,5.3078,3359.4,3359.3,0.297]
[1732268471645,5.3078,3359.4,3358.3,0.297]
[1732268471859,0.55,3359.2,3358.3,0.297]
[1732268472068,0.03722227,3359.1,3358.3,0.297]
[1732268472288,0.55,3359.0,3358.3,0.297]
[1732268472555,0.55,3358.8,3358.3,3.297]
[1732268472765,0.55,3358.8,3358.3,0.297]
[1732268473084,0.03722234,3358.7,3358.3,0.297]
[1732268473384,0.55,3358.6,3358.3,0.297]
[1732268473690,0.03722231,3358.5,3358.3,0.297]
[1732268474430,0.55,3359.0,3358.3,0.297]
[1732268474600,0.55,3359.0,3358.3,0.47949]
[1732268474749,0.55,3359.0,3358.3,0.297]
[1732268474950,0.55,3358.8,3358.5,0.297]
[1732268475150,0.55,3359.0,3358.5,0.297]
[1732268475351,0.55,3358.8,3358.5,0.297]
[1732268475676,0.03722,3358.7,3358.5,0.297]
[1732268476001,0.55,3358.8,3358.3,0.297]
[1732268476304,0.55,3358.6,3358.3,0.297]
[1732268476777,0.03722256,3358.5,3358.3,0.297]
[1732268476979,1.5978,3359.4,3358.3,0.297]
[1732268476980,0.55,3358.7,3358.3,0.297]
[1732268480212,3.16,3358.7,3358.3,0.297]
[1732268480410,2.66,3358.7,3358.3,0.297]
[1732268482992,0.55,3359.1,3358.3,0.297]
[1732268483301,0.98450225,3359.1,3358.3,0.297]
[1732268483616,0.55,3358.9,3358.3,0.297]
[1732268483913,0.03722003,3358.8,3358.3,0.297]
[1732268484703,2.1182,3358.7,3358.4,0.297]
[1732268484981,0.55,3358.5,3358.4,0.297]
[1732268485510,0.58722464,3358.5,3358.4,0.297]
[1732268486378,0.55,3358.5,3358.4,0.297]
[1732268486578,0.58722648,3358.5,3358.4,0.297]
[1732268486892,0.55,3358.5,3357.7,0.297]
[1732268487086,0.55,3358.3,3357.7,0.297]
[1732268487991,0.55,3358.4,3357.7,0.297]
[1732268488511,0.55,3358.6,3358.0,0.297]
[1732268489013,2.71,3358.6,3358.0,0.297]
[1732268489600,2.71,3358.6,3357.8,1.6108]
[1732268489601,2.74722588,3358.6,3358.1,0.297]
[1732268490319,3.02194847,3358.6,3358.1,0.297]
[1732268490825,2.71,3358.6,3358.2,0.297]
[1732268491018,2.71,3358.6,3358.4,0.297]
[1732268491019,2.16,3358.6,3358.4,0.297]
[1732268491309,2.16,3358.6,3358.5,0.49079]
[1732268491512,2.16,3358.6,3358.5,3.297]
[1732268491676,2.16,3358.6,3358.5,0.297]
[1732268492111,2.16,3359.1,3358.6,0.297]
[1732268492323,0.55,3358.9,3358.6,0.297]
[1732268492492,0.55,3358.7,3358.6,0.297]
[1732268492910,4.2031,3358.7,3358.6,0.297]
[1732268493075,4.2031,3358.7,3357.4,0.297]
[1732268493076,2.71,3358.7,3357.4,0.297]
[1732268493278,2.0431,3358.5,3357.4,0.297]
[1732268493481,0.55,3358.3,3357.4,0.297]
[1732268493686,0.55,3358.1,3357.4,0.297]
[1732268493902,0.03723163,3358.0,3357.4,0.297]
[1732268494213,0.55,3357.9,3357.4,0.297]
[1732268494381,0.03723163,3357.8,3357.4,0.297]
[1732268495279,0.03723163,3357.8,3356.0,0.01623242]
[1732268495280,0.55,3357.7,3357.5,0.297]
[1732268495781,0.03723276,3357.6,3357.5,0.297]
[1732268496291,0.03723276,3357.6,3357.0,0.297]
[1732268496613,0.55,3357.5,3357.0,0.297]
[1732268496950,0.0312367,3357.4,3357.0,0.297]
[1732268497621,0.58123753,3357.8,3357.0,0.297]
[1732268497921,0.58123753,3357.8,3357.2,0.297]
[1732268497922,0.74018753,3357.8,3357.2,0.297]
[1732268498282,0.70895,3357.8,3357.2,0.297]
[1732268498508,0.55,3357.6,3357.2,0.297]
[1732268498679,0.55,3357.6,3357.0,0.297]
[1732268498881,0.58123742,3357.6,3357.0,0.297]
[1732268499187,0.82160803,3357.6,3357.0,0.297]
[1732268499400,0.79037061,3357.6,3357.0,0.297]
[1732268499580,0.24037061,3357.6,3357.0,0.297]
[1732268499797,0.03123609,3357.8,3357.0,0.297]
[1732268500019,1.5895,3357.9,3357.0,0.297]
[1732268500216,0.02099474,3357.8,3357.0,0.297]
[1732268500735,0.57099474,3357.8,3357.1,0.297]
[1732268501047,2.32104947,3357.7,3357.1,0.297]
[1732268501200,2.21789474,3357.6,3357.1,0.297]
[1732268501401,0.45389442,3357.5,3357.1,0.297]
[1732268501631,0.02099474,3357.4,3357.1,0.297]
[1732268501931,0.02099474,3357.4,3357.2,0.297]
[1732268502307,0.45389442,3357.5,3357.2,0.297]
[1732268502539,2.62317913,3357.4,3357.2,0.297]
[1732268502908,2.62317913,3357.4,3356.6,0.297]
[1732268503111,2.16,3357.3,3356.6,0.297]
[1732268503310,2.18099474,3357.3,3356.6,0.48412]
[1732268503701,2.18099474,3357.3,3356.6,0.297]
[1732268504615,2.16,3357.3,3356.6,0.297]
[1732268505215,2.16,3357.3,3356.8,0.297]
[1732268506427,0.02099474,3357.2,3356.8,0.297]
[1732268506647,0.02099474,3357.2,3356.8,0.48896]
[1732268507335,0.02099474,3357.7,3356.8,0.48896]
[1732268507702,0.02099474,3357.7,3356.8,0.297]
[1732268507907,0.57099474,3357.7,3356.8,0.297]
[1732268509937,2.16,3357.6,3356.8,0.297]
[1732268510136,0.57099474,3357.5,3356.8,0.297]
[1732268510518,0.55,3357.5,3356.8,0.297]
[1732268510719,0.55,3357.5,3357.0,0.297]
[1732268511855,2.16,3357.6,3357.0,0.297]
[1732268512661,2.16,3357.6,3357.0,3.297]
[1732268512961,2.16,3357.6,3357.0,0.297]
[1732268513141,0.57099474,3357.8,3357.4,0.297]
[1732268513466,0.55,3357.8,3357.4,0.297]
[1732268514229,0.55,3357.8,3356.9,0.19196]
[1732268514230,0.55,3357.8,3357.5,0.297]
[1732268514723,3.7641,3357.9,3357.5,0.297]
[1732268515120,1.5174,3358.6,3357.5,1.8188]
[1732268515322,2.16,3358.5,3357.7,0.297]
[1732268516525,0.57099474,3358.4,3358.0,0.297]
[1732268516831,0.02099474,3358.3,3358.0,0.297]
[1732268517241,0.55,3358.4,3358.0,0.297]
[1732268517423,0.55,3358.4,3358.1,0.297]
[1732268517622,0.57099474,3358.4,3358.1,0.297]
[1732268517853,0.02099474,3358.3,3358.1,0.297]
[1732268518356,0.02099474,3358.3,3358.2,3.00017]
[1732268518535,0.02099474,3358.3,3358.2,0.297]
[1732268518875,2.57373421,3358.3,3358.2,0.297]
[1732268519228,2.51223421,3358.3,3358.2,0.297]
[1732268520331,2.51223421,3358.3,3357.8,0.297]
[1732268520630,0.55,3358.2,3357.8,3.297]
[1732268521164,0.55,3358.2,3358.1,3.79495044]
[1732268521336,0.55,3358.2,3358.1,6.79495044]
[1732268522160,2.71,3358.2,3358.1,3.79495044]
[1732268522367,3.13879,3358.2,3358.1,3.79495044]
[1732268523455,2.16,3358.2,3358.1,3.79495044]
[1732268524159,1.614,3359.1,3358.1,3.79495044]
[1732268524325,1.5901,3358.9,3358.1,3.79495044]
[1732268524526,0.37501,3358.8,3358.1,3.79495044]
[1732268525059,0.37501,3358.8,3358.1,0.297]
[1732268525271,1.5901,3358.7,3357.8,0.297]
[1732268525579,0.55,3358.3,3357.8,0.297]
[1732268525725,2.16,3358.2,3357.8,0.297]
[1732268528657,0.55,3357.9,3357.4,0.297]
[1732268528959,0.97807,3357.9,3357.4,0.297]
[1732268529563,0.97807,3357.9,3357.0,0.297]
[1732268529727,0.55,3357.7,3357.0,0.297]
[1732268530132,1.6056,3357.6,3357.0,0.297]
[1732268530333,0.55,3356.5,3356.1,0.297]
[1732268530566,0.01,3357.0,3355.3,0.297]
[1732268530567,0.55,3356.3,3355.3,0.297]
[1732268533566,3.7656,3356.4,3355.8,3.297]
[1732268533866,2.16,3356.4,3355.8,3.97649504]
[1732268534083,1.5592,3356.7,3356.2,0.297]
[1732268534363,2.16,3356.9,3356.2,3.297]
[1732268534671,0.216,3356.8,3356.2,3.297]
[1732268535271,0.216,3356.8,3356.2,0.297]
[1732268535272,1.5974,3356.7,3356.2,0.297]
[1732268535826,0.55,3356.6,3356.2,0.297]
[1732268536262,0.55,3356.6,3355.6,3.0]
[1732268536263,0.55,3356.6,3355.7,0.297]
[1732268536572,0.55,3356.4,3355.7,0.297]
[1732268536755,0.55,3356.4,3355.6,3.0]
[1732268536756,0.55,3356.6,3355.9,0.297]
[1732268537265,2.16,3356.5,3355.9,0.297]
[1732268537847,2.16,3356.5,3355.7,0.297]
[1732268538041,2.16,3356.5,3355.7,1.10681504]
[1732268538252,2.16,3356.5,3355.7,0.297]
[1732268539748,2.16,3356.5,3355.6,3.0]
[1732268539749,2.16,3356.5,3355.9,0.297]
[1732268540180,2.16,3356.7,3355.9,0.297]
[1732268540384,2.16,3356.7,3355.9,0.78969]
[1732268540686,2.16,3356.7,3356.3,0.297]
[1732268541188,3.6769,3356.7,3356.3,0.297]
[1732268541550,3.6769,3356.7,3356.0,0.297]
[1732268541898,0.36769,3356.6,3356.0,0.297]
[1732268543149,2.52769,3356.6,3356.0,0.297]
[1732268543349,2.16,3356.6,3356.0,0.297]
[1732268545263,2.16,3356.6,3356.0,3.297]
[1732268546097,0.55,3357.1,3356.0,3.297]
[1732268547813,0.55,3356.9,3356.0,3.297]
[1732268547957,0.55,3356.9,3356.0,4.20344984]
[1732268549295,0.55,3356.9,3356.0,3.297]
[1732268549855,0.55,3356.9,3356.2,0.297]
[1732268550413,2.16,3357.0,3356.2,0.297]
[1732268551365,2.16,3357.2,3356.3,5.35105044]
[1732268551667,2.16,3357.5,3356.7,0.297]
[1732268551894,0.37122,3357.4,3356.7,0.297]
[1732268552759,0.55,3357.3,3356.7,0.297]
[1732268553995,0.37122,3357.4,3356.7,0.297]
[1732268554509,0.55,3357.3,3356.7,0.297]
[1732268555072,2.53122,3357.4,3356.7,0.297]
[1732268555276,2.16,3357.4,3356.7,0.297]
[1732268556178,0.55,3357.3,3356.7,0.297]
[1732268556495,0.55,3357.3,3356.8,0.297]
[1732268556697,0.271,3357.2,3356.8,0.297]
[1732268556905,0.55,3357.1,3356.8,0.297]
[1732268557697,0.55,3357.1,3356.9,0.297]
[1732268558674,0.55,3357.1,3357.0,0.297]
[1732268559002,3.0081,3357.1,3357.0,0.297]
[1732268559204,2.71,3357.1,3357.0,0.297]
[1732268559405,4.3114,3357.1,3357.0,0.297]
[1732268559900,4.3114,3357.1,3356.4,0.297]
[1732268560066,0.43114,3357.0,3356.4,0.297]
[1732268560267,0.55,3356.9,3356.4,0.297]
[1732268563473,0.43114,3357.0,3356.4,0.297]
[1732268564271,0.55,3357.2,3356.4,0.297]
[1732268566712,1.5977,3357.1,3356.0,0.297]
[1732268567016,3.14077,3357.0,3356.5,0.297]
[1732268567191,2.71,3357.0,3356.5,0.297]
[1732268567504,2.71,3357.0,3356.7,0.297]
[1732268567715,2.16,3356.9,3356.7,0.297]
[1732268568489,2.16,3356.9,3356.8,0.297]
[1732268568891,4.2668,3356.9,3356.8,0.297]
[1732268569149,4.736557,3356.9,3356.8,0.297]
[1732268569427,4.736557,3356.9,3355.9,1.5001]
[1732268569428,0.55,3356.8,3356.0,0.297]
[1732268569637,2.16,3356.7,3356.0,0.297]
[1732268569929,0.55,3356.6,3356.0,0.297]
[1732268570423,0.55,3356.7,3356.0,0.297]
[1732268572224,2.16,3356.8,3356.0,0.297]
[1732268572730,2.16,3356.8,3355.8,0.297]
[1732268572731,0.55,3356.6,3355.8,0.297]
[1732268573092,2.71,3356.6,3355.8,0.297]
[1732268573598,0.55,3356.4,3355.6,0.297]
[1732268573940,1.8506,3356.7,3355.6,0.297]
[1732268573941,0.55,3356.0,3355.6,0.297]
[1732268574093,2.71,3356.0,3355.6,0.297]
[1732268574828,2.71,3356.0,3355.3,0.297]
[1732268576724,2.16,3356.0,3355.3,0.297]
[1732268578257,2.16,3356.0,3355.3,1.20838042]
[1732268578459,2.16,3356.0,3355.5,3.297]
[1732268578826,2.16,3356.0,3355.5,0.297]
[1732268579249,0.55,3356.2,3355.5,0.297]
[1732268580554,0.55,3356.2,3355.2,0.297]
[1732268580763,2.1709,3356.0,3355.2,0.297]
[1732268582273,4.3309,3356.0,3355.2,0.297]
[1732268583033,2.71,3356.0,3355.2,0.297]
[1732268585276,0.55,3355.8,3355.2,0.297]
[1732268585458,0.55,3355.6,3355.2,0.297]
[1732268586928,2.16,3355.9,3355.2,0.297]
[1732268586929,0.55,3355.8,3355.2,0.297]
[1732268587479,0.55,3355.6,3355.2,0.297]
[1732268587963,0.55,3355.6,3354.8,0.297]
[1732268588143,3.13457,3355.6,3354.8,0.297]
[1732268588339,2.71,3355.6,3354.8,0.297]
[1732268591046,2.71,3355.6,3354.7,0.297]
[1732268591383,0.55,3355.4,3354.7,0.297]
[1732268592261,0.55,3355.4,3354.8,0.297]
[1732268592262,0.55,3355.3,3354.8,0.297]
[1732268593183,0.55,3355.3,3354.9,0.297]
[1732268593378,0.55,3355.1,3354.9,0.297]
[1732268594185,0.55,3355.1,3354.4,0.297]
[1732268595952,0.55,3354.9,3354.5,0.297]
[1732268596171,0.55,3354.7,3354.2,0.297]
[1732268600295,0.55,3354.8,3354.2,0.297]
[1732268605392,0.55,3354.9,3354.2,0.297]
[1732268612282,1.5632,3355.0,3354.2,0.297]
[1732268612283,0.55,3354.7,3354.2,0.297]
[1732268615423,2.71,3354.7,3354.2,0.297]
[1732268616799,2.71,3354.7,3354.3,1.5499]
[1732268617153,2.71,3354.7,3354.4,0.297]
[1732268618194,0.55,3354.8,3354.4,0.297]
[1732268619105,0.55,3354.6,3354.5,0.297]
[1732268620002,2.71,3354.6,3354.2,0.297]
[1732268620220,1.6398,3354.4,3354.2,0.297]
[1732268620434,0.55,3354.3,3354.2,0.297]
[1732268620927,0.55,3354.3,3354.1,0.1502892]
[1732268621128,0.81227,3354.2,3354.1,0.4472892]
[1732268621330,2.97227,3354.2,3354.1,0.4472892]
[1732268622507,4.54717,3354.2,3354.1,0.4472892]
[1732268622691,0.55,3354.1,3353.3,0.11540068]
[1732268622896,0.55,3354.1,3353.2,1.48580018]
[1732268622897,0.55,3353.9,3353.2,1.48580018]
[1732268623091,0.3714717,3353.8,3353.2,1.48580018]
[1732268623409,0.55,3353.5,3351.6,3.49795044]
[1732268623605,0.55,3353.3,3351.6,3.49795044]
[1732268624127,0.55,3353.3,3350.7,0.1502892]
[1732268624331,0.55,3353.1,3351.4,3.49795044]
[1732268624533,0.55,3353.1,3351.5,3.62371339]
[1732268624534,0.42675,3353.0,3351.5,3.62371339]
[1732268624721,0.55,3352.9,3351.6,0.02983222]
[1732268625042,2.16,3353.8,3352.5,3.49795044]
[1732268625331,1.5407,3353.7,3352.6,3.0]
[1732268625922,1.5407,3353.7,3352.7,1.6024]
[1732268626108,2.16,3353.7,3352.9,1.6024]
[1732268626313,0.55,3353.7,3352.9,1.6024]
[1732268626493,2.16,3353.8,3352.9,1.6024]
[1732268626693,2.16,3353.8,3353.0,0.2412435]
[1732268627122,2.16,3353.8,3353.1,1.6347]
[1732268627519,2.16,3354.5,3353.4,1.5831]
[1732268627718,2.16,3354.4,3353.4,1.5831]
[1732268628022,2.16,3354.4,3353.5,1.9056]
[1732268628196,2.16,3354.4,3353.7,0.297]
[1732268628537,2.16,3354.4,3353.6,4.6086]
[1732268628538,2.16,3354.4,3353.9,0.297]
[1732268630058,0.55,3354.3,3353.9,0.297]
[1732268630535,0.55,3354.3,3353.8,1.6086]
[1732268630714,0.821,3354.3,3353.8,1.6086]
[1732268631035,0.55,3354.1,3353.5,0.297]
[1732268631197,0.55,3353.9,3353.5,0.297]
[1732268631395,0.55,3353.9,3353.1,1.62]
[1732268631598,0.55,3353.9,3353.1,1.917]
[1732268631795,0.55,3354.1,3353.2,0.84149504]
[1732268632029,0.55,3354.1,3353.2,4.13849504]
[1732268632436,0.55,3354.1,3353.2,0.297]
[1732268633342,0.55,3353.9,3353.2,0.297]
[1732268634730,0.55,3353.9,3353.3,3.49795044]
[1732268634911,0.55,3353.9,3353.6,0.297]
[1732268635108,0.97937,3353.9,3353.6,0.297]
[1732268635420,0.55,3353.9,3353.6,0.297]
[1732268635621,2.16,3354.0,3353.6,0.297]
[1732268635809,2.16,3354.0,3353.5,0.297]
[1732268636009,2.16,3354.0,3353.7,3.297]
[1732268636343,2.16,3354.7,3353.9,0.297]
[1732268636505,0.37156,3354.6,3353.9,0.297]
[1732268637404,1.6129,3355.1,3354.2,1.8245]
[1732268637603,1.6129,3355.1,3354.4,0.297]
[1732268638499,1.6129,3355.1,3354.3,0.297]
[1732268639327,0.55,3355.0,3354.3,0.297]
[1732268639528,0.98229,3355.0,3354.3,0.297]
[1732268641812,2.16,3355.3,3354.5,0.297]
[1732268641813,0.55,3355.2,3354.5,0.297]
[1732268642004,2.16,3355.3,3354.7,0.297]
[1732268642205,1.5494,3355.6,3354.7,0.297]
[1732268642206,2.16,3355.5,3354.7,0.297]
[1732268642439,2.31494,3355.5,3354.7,0.297]
[1732268643247,0.55,3355.4,3354.7,0.297]
[1732268643461,0.55,3355.2,3354.3,1.9188]
[1732268643831,0.55,3355.2,3354.6,3.49795044]
[1732268644034,2.16,3355.5,3354.7,0.297]
[1732268644235,2.376,3355.5,3354.9,0.297]
[1732268645538,0.55,3355.4,3354.9,0.297]
[1732268645735,1.00641,3355.4,3354.9,0.297]
[1732268645943,0.55,3355.4,3354.9,0.297]
[1732268647060,1.5568,3355.8,3354.9,0.297]
[1732268647361,3.49795044,3356.8,3354.9,0.297]
[1732268647362,2.16,3356.0,3355.2,0.297]
[1732268647525,0.216,3355.9,3355.2,0.297]
[1732268648021,1.5096,3355.8,3355.2,0.297]
[1732268648462,0.55,3355.7,3355.2,0.297]
[1732268648746,0.55,3355.7,3355.3,0.297]
[1732268648955,0.55,3355.5,3355.3,0.297]
[1732268649325,1.5096,3355.8,3355.3,0.297]
[1732268649326,0.55,3355.9,3355.4,1.6546]
[1732268649572,2.16,3356.6,3355.9,0.297]
[1732268649723,1.6009,3356.7,3355.9,0.297]
[1732268649724,2.16,3356.5,3355.9,0.297]
[1732268650657,2.16,3356.5,3355.6,0.297]
[1732268651169,2.16,3356.5,3355.8,0.297]
[1732268651322,2.376,3356.5,3356.0,0.297]
[1732268652032,2.16,3356.5,3356.0,0.297]
[1732268652558,3.27701781,3358.0,3355.5,3.0]
[1732268652559,1.579,3357.4,3356.4,0.297]
[1732268652862,2.16,3357.3,3356.4,0.297]
[1732268653740,0.55,3357.2,3356.4,0.297]
[1732268654546,0.55,3357.0,3356.5,0.297]
[1732268655568,0.55,3357.0,3356.1,0.297]
[1732268655862,1.9603,3357.1,3356.1,0.297]
[1732268655863,0.55,3356.8,3356.1,0.297]
[1732268656437,0.55,3356.8,3356.3,0.297]
[1732268656643,0.55,3357.0,3356.3,0.297]
[1732268656840,0.216,3357.2,3356.3,0.297]
[1732268657042,0.216,3357.2,3356.5,0.297]
[1732268657247,0.38947,3357.1,3356.5,0.297]
[1732268657571,2.376,3357.2,3356.5,0.297]
[1732268657728,0.02,3358.4,3356.5,0.297]
[1732268657729,2.16,3357.3,3356.7,0.297]
[1732268657925,1.5741,3357.8,3356.7,0.297]
[1732268657926,2.16,3357.7,3356.8,1.5339]
[1732268658126,2.16,3357.6,3356.9,0.297]
[1732268658529,0.15741,3357.7,3356.9,0.297]
[1732268658735,2.31741,3357.7,3356.9,0.297]
[1732268658946,2.16,3357.7,3356.9,0.297]
[1732268660032,0.55,3357.6,3356.9,0.297]
[1732268660656,2.16,3357.7,3357.0,1.8551]
[1732268661177,2.16,3357.7,3357.0,3.79495044]
[1732268661379,2.16,3357.7,3357.2,0.297]
[1732268661534,2.16,3358.4,3357.4,0.297]
[1732268661731,2.16,3358.3,3357.4,0.297]
[1732268662156,0.16594,3358.4,3357.6,0.297]
[1732268662355,3.7665,3358.8,3357.6,0.297]
[1732268662745,3.7665,3358.8,3357.7,1.5187]
[1732268662932,1.6003,3359.1,3358.2,0.297]
[1732268663142,2.16,3359.0,3358.2,0.297]
[1732268664497,0.55,3358.9,3358.2,0.297]
[1732268664640,0.55,3358.9,3358.3,0.297]
[1732268664842,0.55,3358.7,3358.3,0.297]
[1732268665067,0.55,3358.5,3358.3,0.297]
[1732268665677,0.55,3358.5,3357.9,0.297]
[1732268665851,0.55,3358.3,3357.9,0.297]
[1732268666058,0.55,3358.1,3357.9,0.297]
[1732268666773,0.55,3358.1,3357.5,0.297]
[1732268666973,0.55,3357.9,3357.5,0.297]
[1732268667486,0.55,3358.1,3357.5,0.297]
[1732268669254,2.71,3358.1,3357.5,0.297]
[1732268669461,2.16,3358.1,3357.9,0.297]
[1732268671281,1.5557,3359.0,3357.9,0.297]
[1732268671282,0.55,3358.7,3357.9,0.297]
[1732268671467,0.55,3358.9,3357.9,0.297]
[1732268675367,0.55,3358.7,3357.9,0.297]
[1732268675566,0.326,3358.6,3357.9,0.297]
[1732268675762,0.55,3358.5,3357.9,0.297]
[1732268677380,2.16,3358.8,3358.1,0.297]
[1732268678864,0.55,3358.7,3358.1,0.297]
[1732268681420,2.71,3358.7,3358.1,0.297]
[1732268684423,0.55,3358.5,3358.1,0.297]
[1732268685136,0.55,3358.5,3358.3,0.297]
[1732268685297,2.16,3358.6,3358.3,0.297]
[1732268686244,2.16,3358.6,3358.0,1.3248]
[1732268686245,2.16,3358.6,3358.1,0.297]
[1732268686527,2.16,3358.6,3358.3,0.297]
[1732268686736,0.55,3358.5,3358.3,0.297]
[1732268687288,0.55,3358.8,3358.3,0.297]
[1732268687518,0.55,3358.8,3358.1,0.297]
[1732268687704,0.55,3358.8,3358.3,0.297]
[1732268687903,0.992127,3358.8,3358.3,0.297]
[1732268688581,0.992127,3358.8,3358.5,0.297]
[1732268689531,0.992127,3358.8,3358.1,0.297]
[1732268689741,0.992127,3358.8,3358.3,0.297]
[1732268690039,0.55,3358.6,3358.5,0.297]
[1732268691057,2.31557,3358.9,3358.5,0.297]
[1732268691058,0.55,3358.8,3358.5,1.5534]
[1732268691360,2.16,3358.9,3358.5,1.5534]
[1732268691959,2.16,3358.9,3358.7,0.297]
[1732268692158,2.16,3359.4,3358.7,0.297]
[1732268692333,2.32027,3359.4,3358.7,0.297]
[1732268693344,0.55,3359.1,3358.6,0.297]
[1732268698184,1.5007,3359.0,3358.7,0.297]
[1732268698351,0.55,3358.9,3358.7,0.297]
[1732268698673,1.10486504,3358.8,3358.7,0.297]
[1732268699471,3.26486504,3358.8,3358.7,0.297]
[1732268699845,0.55,3358.7,3358.1,0.297]
[1732268700091,0.55,3358.5,3358.1,0.297]
[1732268700285,0.55,3358.5,3357.0,4.13758208]
[1732268700286,2.204,3358.5,3358.2,0.297]
[1732268700441,2.72853515,3358.5,3358.2,0.297]
[1732268701278,2.72853515,3358.5,3357.9,0.297]
[1732268701440,4.88853515,3358.5,3357.9,0.297]
[1732268701939,3.23453515,3358.5,3357.9,0.297]
[1732268702139,2.71,3358.5,3357.9,0.297]
[1732268703178,2.16,3358.5,3358.2,0.297]
[1732268703473,2.16,3358.5,3358.4,0.297]
[1732268704789,1.5361,3359.4,3358.4,5.53856044]
[1732268705077,1.5361,3359.8,3358.8,0.297]
[1732268705281,0.36961,3359.7,3358.8,0.297]
[1732268706378,0.55,3359.6,3358.8,0.297]
[1732268708848,0.55,3359.6,3358.9,0.297]
[1732268709178,0.55,3359.6,3359.1,0.297]
[1732268709374,1.6613,3360.1,3359.1,0.297]
[1732268709375,0.5,3359.9,3359.1,0.297]
[1732268710956,0.5,3359.9,3359.3,0.297]
[1732268712253,2.0692,3359.9,3359.3,0.297]
[1732268712706,2.0692,3359.9,3358.5,0.297]
[1732268713367,1.5565,3359.4,3358.5,0.297]
[1732268713589,1.05544504,3359.3,3358.5,0.297]
[1732268714096,1.05544504,3359.3,3357.8,0.297]
[1732268714279,0.55,3359.1,3357.8,0.297]
[1732268714596,0.4730145,3359.0,3357.8,0.297]
[1732268714842,0.55,3358.9,3357.8,0.297]
[1732268716284,0.55,3358.9,3358.0,0.297]
[1732268716998,0.55,3358.9,3358.2,0.297]